Workbook

Sheet Disclaimer

Sheet Instructions
A1: Power Budget Instructions

Sheet Configuration
A1: Notes: 1. The 25°C configuration alone is limited to elevations of 900m or less 2. LAN SKU only analized for Orange Beach 3. AXX2FDRIBIOM driven by connector cooling in corner IOM. 4. ... 5. Processor throttling may occur with a system fan failure which may impact system performance. 6. Specifically for A3/A4 individual Power Supply selection power margin is required to meet thermal specifications: a) For dual power supply configuration, power budget must fit within single power supply rated load and be installed in dual configuration, or b) For single power supply configuration, power budget must be sized with 30% margin to single power supply rated load. 7. GPGPU cards may have performance impact during ambient excursions 8. When identifying memory in the table, only Rank and Width are required. Capacity is not required. 9. LV refers to low voltage DIMMs (1.35V) 10. ... 11. Confirm the case temperature specification for the SSD to make appropriate selection 12. Fan fail of dual-rotor fans refers to one rotor fail. "Fan Fail Support" indicates if fan fail can be supported with specified configuration in each column. | C1: Base System SKUs: ROW | G1: Base System SKUs: LAN
A2: ASHRAE (See note 1) | B2: Classifications | C2: 25C | D2: A2 | E2: A3 | F2: A4 | G2: 25C | H2: A2 | I2: A3 | J2: A4
B3: Max Ambient | C3: 25°C | D3: 35°C | E3: 40°C | F3: 45°C | G3: 25°C | H3: 35°C | I3: 40°C | J3: 45°C | K3: <-- See note 1 | Q3: Possibly a 0C ambient for McAfee (cold start up)
A4: Cooling (See note 12) | B4: Redundant Fan Configuration | C4: ● | D4: ● | E4: ● | F4: ● | G4: ● | H4: ● | I4: ● | J4: ● | AD4: Prioritize CPU's first, then Memory Then…..
B5: Fan Fail Support | C5: ● | D5: ● | G5: ● | H5: ●
A6: PS (See note 6) | B6: Power Supplies | C6: See Tool | G6: See Tool | K6: <-- see note 6
A7: EP Processors (See Note 5) | B7: E5-4640, 2.4 GHz, 95W, 8 Cores, 20 MB Cache, 95 W | C7: ● | D7: ● | E7: ● | F7: ● | G7: ● | H7: ● | I7: ● | K7: <-- see note 5
B8: E5-4650L, 2.6 GHz, 115W, 8 Cores, 20 MB Cache, 115 W | C8: ● | D8: ● | E8: ● | F8: ● | G8: ● | H8: ● | I8: ● | K8: <-- see note 5
B9: E5-4650, 2.7 GHz, 130W, 8 Cores, 20 MB Cache, 130 W | C9: ● | D9: ● | E9: ● | F9: ● | G9: ● | H9: ● | I9: ● | K9: <-- see note 5
B10: E5-4603, 2 GHz, 95W, 4 Cores, 10 MB Cache, 95 W | C10: ● | D10: ● | E10: ● | F10: ● | K10: <-- see note 6
B11: E5-4617, 2.9 GHz, 130W, 6 Cores, 15 MB Cache, 130 W | C11: ● | D11: ● | E11: ● | F11: ● | G11: ● | K11: <-- see note 5
B12: E5-4620, 2.2 GHz, 95W, 8 Cores, 16 MB Cache, 95 W | C12: ● | D12: ● | E12: ● | F12: ● | G12: ● | K12: <-- see note 5
B13: E5-4607, 2.2 GHz, 95W, 6 Cores, 12 MB Cache, 95 W | C13: ● | D13: ● | E13: ● | F13: ● | G13: ● | K13: <-- see note 5
B14: E5-4610, 2.4 GHz, 95W, 6 Cores, 15 MB Cache, 95 W | C14: ● | D14: ● | E14: ● | F14: ● | G14: ● | K14: <-- see note 5
A15: Memory Type (See notes 8 and 9) | B15: Dual Rank x8 Normal and LV, Quad Rank x8 LV | C15: ● | D15: ● | E15: ● | F15: ● | G15: ● | H15: ● | I15: ● | J15: ● | U15: McAfee only planning on using DRx8 and x4
B16: Dual Rank x4 Normal and LV | C16: ● | D16: ● | E16: ● | F16: ● | G16: ● | H16: ● | I16: ● | J16: ● | U16: McAfee only planning on using DRx8 and x4
B17: Quad Rank x8 Normal | C17: ● | D17: ● | E17: ● | F17: ● | G17: ● | H17: ● | I17: ● | J17: ●
B18: Quad Rank x4 Normal and LV | C18: ● | D18: ● | E18: ● | G18: n/a | H18: n/a | I18: n/a | J18: n/a
B19: Load Reduced DIMM | C19: ● | D19: ● | E19: ● | G19: n/a | H19: n/a | I19: n/a | J19: n/a | U19: Potentially limit LRDIMM to cool other components
A20: Add-in Cards (See note 2) | B20: Riser #1 - Top Slot | C20: ● | D20: ● | E20: ● | F20: ● | G20: ● | H20: ● | I20: ● | K20: <-- see note 2
B21: Riser #1 - Bottom Slot | C21: ● | D21: ● | E21: ● | F21: ● | G21: ● | H21: ● | I21: ● | K21: <-- see note 2
B22: Riser #1 - Front | C22: ● | D22: ● | E22: ● | F22: ● | G22: n/a | H22: n/a | I22: n/a | J22: n/a
B23: Riser #2 - Top Slot | C23: ● | D23: ● | E23: ● | F23: ● | G23: ● | H23: ● | I23: ● | K23: <-- see note 2
B24: Riser #2 - Bottom | C24: ● | D24: ● | E24: ● | F24: ● | G24: ● | H24: ● | I24: ● | K24: <-- see note 2
B25: Riser #2 - Front | C25: ● | D25: ● | E25: ● | F25: ● | G25: n/a | H25: n/a | I25: n/a | J25: n/a
B26: AXX10GBTWLIOM - Dual 10GBASE-T IO Module | C26: ● | D26: ● | E26: ● | G26: n/a | H26: n/a | I26: n/a | J26: n/a | P26: Twinville
B27: AXX10GBNIAIOM - Dual SFP+ port 10GbE IO Module | C27: ● | D27: ● | E27: ● | F27: ● | G27: n/a | H27: n/a | I27: n/a | J27: n/a | P27: Niantic
B28: AXX1FDRIBIOM - Single Port FDR Infiniband IO Module | C28: ● | D28: ● | G28: n/a | H28: n/a | I28: n/a | J28: n/a | K28: <-- see note 3 | P28: FDR Single Port
B29: AXX2FDRIBIOM - Dual Port FDR Infiniband IO Module | C29: ● | D29: ● | G29: n/a | H29: n/a | I29: n/a | J29: n/a | K29: <-- see note 3 | P29: FDR Dual Port
B30: AXX4P1GBPWLIOM - Quad Port 1GbE IO Module | C30: ● | D30: ● | E30: ● | F30: ● | G30: n/a | H30: n/a | I30: n/a | J30: n/a | P30: Powerville
A31: GPGPU (See note 7) | B31: Active up to 300W | C31: ● | D31: ● | E31: ● | G31: n/a | H31: n/a | I31: n/a | J31: n/a | K31: <-- See Note 7 | U31: Need more data
B32: Active up to 225W | C32: ● | D32: ● | E32: ● | G32: n/a | H32: n/a | I32: n/a | J32: n/a | K32: <-- See note 7 | U32: Need more data
B33: Passive up to 300W | C33: ● | G33: n/a | H33: n/a | I33: n/a | J33: n/a | U33: Need more data
B34: Passive up to 75W | C34: ● | D34: ● | G34: n/a | H34: n/a | I34: n/a | J34: n/a | U34: Need more data
A35: Battery Backup (See note 10) | B35: BBU (rated to 45C) | C35: ● | D35: ● | E35: ● | G35: ●
B36: Supercap (rated to 55C) | C36: ● | D36: ● | E36: ● | F36: ● | G36: ● | H36: ● | I36: ●
B37: Cache Offload Module (rated to 55C) | C37: ● | D37: ● | E37: ● | F37: ● | G37: ● | H37: ● | I37: ●
A38: Internal SSD (See note 11) | B38: Rated to 60C | C38: ● | D38: ● | E38: ● | F38: ● | G38: ● | H38: ● | I38: ●
B39: Rated to 70C | C39: ● | D39: ● | E39: ● | F39: ● | G39: ● | H39: ● | I39: ● | J39: ●

Sheet Summary
A1: Power Budget | B1: =CONCATENATE(INDEX(Chassis!$N$3:$N$13,'Intel Chassis'!$B3)," / ",INDEX(Serverboard!A$2:A$13,'Serverboard Config'!$B5) ) -> (Select a Chassis) / (Select Serverboard)
A2: Chassis/ Power Supply / Cooling: | B2: =INDEX(Chassis!A$3:A$13,'Intel Chassis'!$B3) -> (Select Chassis)
A3: Serverboard: | B3: =INDEX(Serverboard!A$2:A$13,'Serverboard Config'!$B5) -> (Select Serverboard)
A4: System Totals | B4: +12V (amps) | C4: 12VSB (amps) | D4: Total System Watts
A5: =CONCATENATE("Processors - Qty ",'Serverboard Config'!C4, ":") -> Processors - Qty 1: | B5: =SUM('Serverboard Config'!F3) -> 0 | C5: =SUM('Serverboard Config'!G3) -> 0 | D5: =SUM('Serverboard Config'!H3) -> 0
A6: =CONCATENATE("Modules + PCI Cards - Qty ",('Serverboard Config'!B9>1) + ('Serverboard Config'!B10>1) + ('Serverboard Config'!B11>1) + ('Serverboard Config'!B12>1) +('Serverboard Config'!B13>1)+('Serverboard Config'!B14>1)+('Serverboard Config'!B15>1)+('Serverboard Config'!B18>1),":") -> Modules + PCI Cards - Qty 1: | B6: =SUM('Serverboard Config'!F9:F18) -> 0 | C6: =SUM('Serverboard Config'!G9:G18) -> 0.1551 | D6: =SUM('Serverboard Config'!H9:H18) -> 1.8612
A7: =CONCATENATE("Hard Drives - Qty ",'Intel Chassis'!C4,":") -> Hard Drives - Qty 0: | B7: =SUM('Intel Chassis'!G4:G4) -> 0 | C7: 0 | D7: =SUM('Intel Chassis'!I4:I4) -> 0
A8: Serverboard & Memory: | B8: =SUM('Serverboard Config'!F5:F6) -> 0 | C8: =SUM('Serverboard Config'!G5:G6) -> 0 | D8: =SUM('Serverboard Config'!H5:H6) -> 0
A9: Chassis & Peripherals: | B9: =_Sys12 - B7 -> 0 | C9: ='Intel Chassis'!H10 -> 0 | D9: =3.3*Sys3.3+5*_Sys5+ 12*_Sys12-D7 -> 0
A10: System Totals: | B10: =SUM(B5:B9) -> 0 | C10: =SUM(C5:C9) -> 0.1551 | D10: =SUM(D5:D9) -> 1.8612
A11: =TEXT(INDEX(Summary!H19:H24,Summary!B19),"###") & TEXT(INDEX(Summary!I19:I24,Summary!B19),"###") &" PS DC Output Limits:" -> 120VAC PS DC Output Limits: | B11: =INDEX(Chassis!B$3:B$13,'Intel Chassis'!$B3) -> 0 | C11: =INDEX(Chassis!C$3:C$13,'Intel Chassis'!$B3) -> 0 | D11: =INDEX(OFFSET(Chassis!U3:U13,,(B19-1)),'Intel Chassis'!B3) -> 0 | E11: <-- These limits may change based on inlet voltage. If value is zero then there is a mis-match between input voltage and chassis power supply type.
A12: CLST Allowance | B12: ='Serverboard Config'!F23 -> 0 | D12: ='Serverboard Config'!H23 -> 0
A13: Total System Limits | B13: =B12+PS1_12 -> 0 | C13: =C12+PS1_5VSB -> 0 | D13: =D12+ps1CombLim -> 0
A14: Margins to Limit: | B14: =B13-B10 -> 0 | C14: =C13-C10 -> -0.1551 | D14: =D13-PowerTotal -> -1.8612 | E14: =IF((OR(B14<0,C14<0)),"<-- Limits Exceeded!","<--System Margins") -> <-- Limits Exceeded!
A15: Negative margins show configuration exceeds a specified limit. | D15: =(D11-D10)/D11 ->  | E15: <-- % margin to PS rating
A18: AC inlet power estimate (below)
A19: Input Voltage: | B19: 2 | C19: (Volts) | H19: 220 | I19: VAC
A20: Estimated Inlet Power: | B20: =IF(INDEX(Chassis!$H$3:$M$13,'Intel Chassis'!$B3,B19)="na","na",PowerTotal/ (INDEX(Chassis!$H$3:$M$13,'Intel Chassis'!$B3,B19)+0.001)) -> 1.859340659 | C20: (Watts) | D20: Calculation is blank if voltage does not match PS type | H20: 120 | I20: VAC
A21: Estimated Inlet Current: | B21: =IF(B20="na","na",B20/ABS(INDEX(H19:H24,B19))) -> 0.01549450549 | C21: (Amps) | D21: Calculation is blank if voltage does not match PS type | H21: 110 | I21: VAC
A22: Estimated Thermal Dissipation: | B22: =IF(B20="na","na",B20*3.41) -> 6.340351648 | C22: (BTU/Hr) | D22: Calculation is blank if voltage does not match PS type | H22: 100 | I22: VAC
A23: Note: Estimates are most accurate at max loading. | H23: -48 | I23: VDC
H24: -60 | I24: VDC
A26: If your desired configuration exceeds the power supply limits, two power supplies are required. The two power supplies will operate in a current sharing mode
A27: to deliver the additional power needed for your configuration. Furthermore, the two power supplies may need to be sourced from separate AC circuits in order to not
A28: exceed maximum AC outlet current. Exceeding maximum AC outlet current may cause a circuit breaker to trip.
A30: For A3/A4 individual PS selection
A31: 1) For dual power supply configuration, power budget must fit within single power supply rated load and be installed in dual configuration, or
A32: 2) For single power supply configuration, power budget must be sized with 30% margin to single power supply rated load.
A34: =CONCATENATE("Revision: ",Revision!B1) -> Revision: 1 | B34: =Revision!A1 -> 2012-10-13

Sheet Intel Chassis
A1: Power Budget | B1: =CONCATENATE(INDEX(Chassis!$N$3:$N$13,B3), " System Configuration") -> (Select a Chassis) System Configuration | K1: HSBP VRM Efficiency
A2: System Feature | B2: Description | C2: Qty | E2: +3.3V (amps) | F2: +5V (amps) | G2: +12V (amps) | H2: 12V stby (amps) | I2: Power (watts) | K2: =INDEX(Chassis!$G$3:$G$13,B3) -> 1
A3: Chassis: | B3: 1 | G3: =INDEX(Chassis!$E$3:$E$13,B3)+IF(INDEX(Chassis!$F$3:$F$13,B3)="Y",(INDEX(Processors!C2:C20,'Serverboard Config'!B3)*'Serverboard Config'!C4),0) -> 0 | I3: =G3*12+H3*12 -> 0 | J3: Includes System Fans
A4: Hard Drive Type: | B4: 1 | C4: 0 | F4: =INDEX(HardDrive!$C$2:$C$16,B4) *C4 * 1 -> 0 | G4: =(INDEX(HardDrive!$D$2:$D$16,B4)*C4+((F4*5)/12)/$K$2) *1 -> 0 | I4: 0 | J4: =IF(C4>(INDEX(HardDrive!$F$19:$F$31*$C$5,'Intel Chassis'!$B$5))," <-- Max Supported HDD Count Exceeded!"," ") -> 
A5: Backplane Type: | B5: 1 | C5: 0 | G5: =(INDEX(HardDrive!$D$19:$D$31,B5) *C5+((F5*5)/12)/$K$2) *1 -> 0 | I5: 0
A6: USB: | B6: Number of Devices (100mA/device) | C6: 0 | F6: =0.1*C6 -> 0 | G6: =((F6*5)/12)/_5vVRM -> 0 | I6: 0
A7: Display: | B7: Optional LCP | C7: 0 | H7: =(0.171*3.3)/12/_stbyVRM*C7 -> 0 | I7: 0
A8: Slim-line Bay: | B8: 1 | C8: 1 | F8: =INDEX(Peripherals!C$3:C$9,$B8) *C8 -> 0 | G8: =(INDEX(Peripherals!$D$3:$D$9,B8)*C8+((F8*5)/12)/_5vVRM) *1 -> 0 | I8: 0
A9: SSD Bay: | B9: 1 | C9: 0 | E9: =INDEX(Peripherals!B$12:B$18,$B9)*C9 -> 0 | F9: =INDEX(Peripherals!C$12:C$18,$B9) *C9 -> 0 | G9: =(INDEX(Peripherals!$D$12:$D$18,B9)*C9+((E9*3.3)/12)/_3vVRM+((F9*5)/12)/_5vVRM) *1 -> 0 | I9: 0
B10: SubTotals: | G10: =SUM(G3:G9) -> 0 | H10: =SUM(H3:H9) -> 0 | I10: =E10*3.3+F10*5+G10*12 -> 0
B11: SubTotal Chassis Power (Watts): | G11: =G10*12 -> 0 | H11: =H10*5 -> 0 | I11: =SUM(E11:G11) -> 0
B12: Total System usage: | G12: =Summary!B10 -> 0 | H12: =Summary!C10 -> 0.1551 | I12: =Summary!D10 -> 1.8612
B13: =TEXT(INDEX(Summary!H19:H24,Summary!B19),"###") & TEXT(INDEX(Summary!I19:I24,Summary!B19),"###") &" PS DC Output Limits:" -> 120VAC PS DC Output Limits: | G13: =PS1_12 -> 0 | H13: =PS1_5VSB -> 0 | I13: =ps1CombLim -> 0 | J13: <-- These limits may change based on inlet voltage
B14: CLST Allowance: | G14: ='Serverboard Config'!F23 -> 0 | I14: ='Serverboard Config'!H23 -> 0
B15: Total System Limits: | G15: ='Serverboard Config'!F24 -> 0 | H15: =H13 -> 0 | I15: ='Serverboard Config'!H24 -> 0
B16: Margins compared to Limits: | G16: =G15-G12 -> 0 | H16: -0.1551 | I16: =I15-I12 -> -1.8612 | J16: =IF(OR(G16<0,H16<0,I16<0),"<-- Limits Exceeded!","<--System Margins") -> <-- Limits Exceeded!
I17: =(I13-I12)/I13 ->  | J17: <-- % margin to PS rating

Sheet Serverboard Config
A1: Power Budget | B1: =CONCATENATE(INDEX(Serverboard!A$2:A$13,$B5)," Configuration") -> (Select Serverboard) Configuration | J1: CPU VRM Efficiency | K1: Mem VR Efficiency | L1: 3.3v VRM Efficiency | M1: 5v VRM Efficiency | N1: 3.3 Stby VR Efficiency
A2: Serverboard Feature | B2: Description | D2: +3.3V (amps) | E2: +5V (amps) | F2: +12V (amps) | G2: 12V stby (amps) | H2: Power (watts) | J2: =INDEX(Serverboard!E$2:E$11,$B5) -> 1 | K2: =INDEX(Serverboard!F$2:F$11,$B5) -> 0 | L2: =INDEX(Serverboard!G$2:G$11,$B5) -> 1 | M2: =INDEX(Serverboard!H$2:H$11,$B5) -> 1 | N2: =INDEX(Serverboard!I$2:I$11,$B5) -> 1 | O2: <--Hide these columns
A3: Processors: | B3: 1 | F3: =C4*INDEX(Processors!B$2:B$20,$B3)/12/VRMefficiency*0.9 -> 0 | H3: =F3*12+E3*5 -> 0
B4: Quantity: | C4: 1
A5: Serverboard: | B5: 1 | F5: =INDEX(Serverboard!B$2:B$13,$B5) *1 -> 0 | G5: =INDEX(Serverboard!C$2:C$13,$B5) *1 -> 0 | H5: =INDEX(Serverboard!D$2:D$13,$B5) *1 -> 0
A6: Memory: | B6: 1 | C6: =(C4-1)*(C7-1)*(C8-1) -> 0 | F6: =IF(C4=1,0,((INDEX(Memory!A5:D16,'Serverboard Config'!B6,C8)*(C4-1)*(C7-1)*(C8-1)/12/_MemVR*0.9))) -> 0 | H6: =D6*3.3+E6*5+F6*12+G6*12 -> 0 | I6: =IF(ISERR(F6),"<--- Invalid DIMM Configuration","") -> 
B7: # of DIMM Channels | C7: 1
B8: # of DIMMs per Channel | C8: 1
A9: PCI Card #1: | B9: 1 | D9: =INDEX(PCI!B$2:B$19,$B9) -> 0 | E9: =INDEX(PCI!C$2:C$19,$B9) -> 0 | F9: =INDEX(PCI!D$2:D$19,$B9)+((D9*3.3)/12)/$L$2+((E9*5)/12)/$M$2 -> 0 | G9: =((INDEX(PCI!$E$2:$E$19,$B9)*3.3)+(INDEX(PCI!$F$2:$F$19,$B9))*5)/12/_stbyVRM -> 0 | H9: =F9*12+G9*12 -> 0
A10: PCI Card #2: | B10: 1 | D10: =INDEX(PCI!B$2:B$19,$B10) -> 0 | E10: =INDEX(PCI!C$2:C$19,$B10) -> 0 | F10: =INDEX(PCI!D$2:D$19,$B10)+((D10*3.3)/12)/$L$2+((E10*5)/12)/$M$2 -> 0 | G10: =((INDEX(PCI!$E$2:$E$19,$B10)*3.3)+(INDEX(PCI!$F$2:$F$19,$B10))*5)/12/_stbyVRM -> 0 | H10: 0
A11: PCI Card #3: | B11: 1 | D11: =INDEX(PCI!B$2:B$19,$B11) -> 0 | E11: =INDEX(PCI!C$2:C$19,$B11) -> 0 | F11: =INDEX(PCI!D$2:D$19,$B11)+((D11*3.3)/12)/$L$2+((E11*5)/12)/$M$2 -> 0 | G11: =((INDEX(PCI!$E$2:$E$19,$B11)*3.3)+(INDEX(PCI!$F$2:$F$19,$B11))*5)/12/_stbyVRM -> 0 | H11: 0
A12: PCI Card #4: | B12: 1 | D12: =INDEX(PCI!B$2:B$19,$B12) -> 0 | E12: =INDEX(PCI!C$2:C$19,$B12) -> 0 | F12: =INDEX(PCI!D$2:D$19,$B12)+((D12*3.3)/12)/$L$2+((E12*5)/12)/$M$2 -> 0 | G12: =((INDEX(PCI!$E$2:$E$19,$B12)*3.3)+(INDEX(PCI!$F$2:$F$19,$B12))*5)/12/_stbyVRM -> 0 | H12: 0
A13: Internal PCI Card #5: | B13: 1 | D13: =INDEX(PCI!B$2:B$19,$B13) -> 0 | E13: =INDEX(PCI!C$2:C$19,$B13) -> 0 | F13: =INDEX(PCI!D$2:D$19,$B13)+((D13*3.3)/12)/$L$2+((E13*5)/12)/$M$2 -> 0 | G13: =((INDEX(PCI!$E$2:$E$19,$B13)*3.3)+(INDEX(PCI!$F$2:$F$19,$B13))*5)/12/_stbyVRM -> 0 | H13: 0
A14: Internal PCI Card #6: | B14: 1 | D14: =INDEX(PCI!B$2:B$19,$B14) -> 0 | E14: =INDEX(PCI!C$2:C$19,$B14) -> 0 | F14: =INDEX(PCI!D$2:D$19,$B14)+((D14*3.3)/12)/$L$2+((E14*5)/12)/$M$2 -> 0 | G14: =((INDEX(PCI!$E$2:$E$19,$B14)*3.3)+(INDEX(PCI!$F$2:$F$19,$B14))*5)/12/_stbyVRM -> 0 | H14: 0
A15: RMM4: | B15: 2 | D15: =INDEX(PCI!B$40:B$44,$B15) -> 0 | E15: =INDEX(PCI!C$40:C$44,$B15) -> 0 | F15: =INDEX(PCI!D$40:D$44,$B15)+((D15*3.3)/12)/$L$2+((E15*5)/12)/$M$2 -> 0 | G15: =((INDEX(PCI!E40:E44,$B15)*3.3)+(INDEX(PCI!F40:F44,$B15))*5)/12/_stbyVRM -> 0.1551 | H15: 1.8612
A16: eUSB: | B16: 1 | D16: =INDEX(PCI!B$47:B$51,$B16) -> 0 | E16: =INDEX(PCI!C$47:C$51,$B16) -> 0 | F16: =INDEX(PCI!D$47:D$51,$B16)+((D16*3.3)/12)/$L$2+((E16*5)/12)/$M$2 -> 0 | G16: =((INDEX(PCI!E47:E51,$B16)*3.3)+(INDEX(PCI!F47:F51,$B16))*5)/12/_stbyVRM -> 0 | H16: 0
A17: Primary IO Module: | B17: 1 | D17: =INDEX(PCI!B$29:B$37,$B17) -> 0 | E17: =INDEX(PCI!C$29:C$37,$B17) -> 0 | F17: =INDEX(PCI!D$29:D$37,$B17)+((D17*3.3)/12)/$L$2+((E17*5)/12)/$M$2 -> 0 | G17: =((INDEX(PCI!E28:E36,$B17)*3.3)+(INDEX(PCI!F28:F36,$B17))*5)/12/_stbyVRM -> 0 | H17: =F17*12+G17*12 -> 0
A18: Secondary IO Module: | B18: 1 | D18: =INDEX(PCI!B$29:B$37,$B18) -> 0 | E18: =INDEX(PCI!C$29:C$37,$B18) -> 0 | F18: =INDEX(PCI!D$29:D$37,$B18)+((D18*3.3)/12)/$L$2+((E18*5)/12)/$M$2 -> 0 | G18: =((INDEX(PCI!E29:E37,$B18)*3.3)+(INDEX(PCI!F29:F37,$B18))*5)/12/_stbyVRM -> 0 | H18: 0
B19: 1 | F19: =SUM(F3:F18) -> 0 | G19: =SUM(G3:G18) -> 0.1551 | H19: =SUM(H3:H18) -> 1.8612
B20: SubTotal Serverboard Power (Watts): | F20: =(F19)*12 -> 0 | G20: =(G19)*5 -> 0.7755 | H20: =SUM(D20:G20) -> 0.7755
B21: Total System usage: | F21: =Summary!B10 -> 0 | G21: =Summary!C10 -> 0.1551 | H21: =Summary!D10 -> 1.8612
B22: =TEXT(INDEX(Summary!H19:H24,Summary!B19),"###") & TEXT(INDEX(Summary!I19:I22,Summary!B19),"###") &" PS DC Output Limits:" -> 120VAC PS DC Output Limits: | F22: =PS1_12 -> 0 | G22: =PS1_5VSB -> 0 | H22: =ps1CombLim -> 0 | I22: <-- These limits may change based on inlet voltage
B23: CLST Allowance: | F23: =F3*25%+F6*20% -> 0 | H23: =H3*25%+H6*20% -> 0
B24: Total System Limits: | F24: =F23+F22 -> 0 | G24: =G23+G22 -> 0 | H24: =H23+H22 -> 0
C25: Margin compared to Limits: | F25: =F24-F21 -> 0 | G25: =G24-G21 -> -0.1551 | H25: =H24-H21 -> -1.8612 | I25: =IF(OR(F25<0,G25<0,H25<0),"<-- Limits Exceeded!","<--System Margins") -> <-- Limits Exceeded!
H26: =(H22-H21)/H22 ->  | I26: <-- % margin to PS rating
A32: CPU = 25% of TDP
A33: Memory = 10% Bandwidth
F35: =IF(C6=1,0,((HLOOKUP(INDEX(Memory!A26:A39,$C6),Memory!B4:D16,B6+2,FALSE))/12/_MemVR*0.9)) -> 

Sheet Serverboard
A1: Serverboard | B1: 12 | C1: 12VSB | D1: Watts | E1: CPU VR Eff% | F1: Mem VR Eff% | G1: 5v VR Eff% | H1: 3v VR Eff% | I1: Stby/Aux Eff%
A2: (Select Serverboard) | E2: 1 | G2: 1 | H2: 1 | I2: 1
A3: S4600LT2 Serverboard | B3: =24.5/12 -> 2.041666667 | C3: =0.414/12/0.9 -> 0.03833333333 | D3: =B3*12+C3*12 -> 24.96 | E3: 0.85 | F3: 0.84 | G3: 0.85 | H3: 0.9 | I3: 0.87 | J3: Pwr Budget v0.3
A4: S4600LH2 Serverboard | B4: =20.5/12 -> 1.708333333 | C4: =0.414/12/0.9 -> 0.03833333333 | D4: =B4*12+C4*12 -> 20.96 | E4: 0.85 | F4: 0.84 | G4: 0.85 | H4: 0.9 | I4: 0.87 | J4: Pwr Budget v0.3
A5: S4600LTM Serverboard | B5: =24.5/12 -> 2.041666667 | C5: =0.414/12/0.9 -> 0.03833333333 | D5: =B5*12+C5*12 -> 24.96 | E5: 0.85 | F5: 0.84 | G5: 0.85 | H5: 0.9 | I5: 0.87 | J5: Pwr Budget v0.3
D6: 0 | E6: 0.8 | F6: 0.8 | G6: 0.8 | H6: 0.8 | I6: 0.8 | J6: <-- Define Custom Numbers Here
D7: 0 | E7: 0.8 | F7: 0.8 | G7: 0.8 | H7: 0.8 | I7: 0.8 | J7: <-- Define Custom Numbers Here
D8: 0 | E8: 0.8 | F8: 0.8 | G8: 0.8 | H8: 0.8 | I8: 0.8 | J8: <-- Define Custom Numbers Here
D9: 0 | E9: 0.8 | F9: 0.8 | G9: 0.8 | H9: 0.8 | I9: 0.8 | J9: <-- Define Custom Numbers Here
D10: 0 | E10: 0.8 | F10: 0.8 | G10: 0.8 | H10: 0.8 | I10: 0.8 | J10: <-- Define Custom Numbers Here
D11: 0 | E11: 0.8 | F11: 0.8 | G11: 0.8 | H11: 0.8 | I11: 0.8 | J11: <-- Define Custom Numbers Here

Sheet Chassis
A1: Chassis | D1: Total | E1: Fans | F1: HS Fan | G1: HSBP | H1: PS Eff% | N1: Product Name | O1: Total 12 DC Current (Amps) | U1: Total DC Ouput (Watts)
A2: Selection | B2: 12V | C2: 12VSB | D2: Watts | E2: 12V | F2: (Y/N) | G2: VR Eff% | H2: 220VAC | I2: 120VAC | J2: 110VAC | K2: 100VAC | L2: -48DCV | M2: -60DCV | O2: 220VAC | P2: 120VAC | Q2: 110VAC | R2: 100VAC | S2: -48DCV | T2: -60DCV | U2: 220VAC | V2: 120VAC | W2: 110VAC | X2: 100VAC | Y2: -48DCV | Z2: -60DCV
A3: (Select Chassis) | G3: 1 | H3: 1 | I3: 1 | J3: 1 | K3: 1 | L3: 1 | M3: 1 | N3: (Select a Chassis)
A4: R2XXXL (1200W AC PSU) | B4: =INDEX(O4:T4,Summary!$B$19) -> 83 | C4: 2.1 | D4: 1200 | E4: =11*1.82 -> 20.02 | F4: Y | G4: 0.9 | H4: 0.91 | I4: 0.91 | J4: 0.91 | K4: 0.91 | L4: na | M4: na | N4: R2XXXL | O4: 100 | P4: 83 | Q4: 83 | R4: 83 | U4: 1200 | V4: 1000 | W4: 1000 | X4: 1000 | AA4: PS Eff% from measured curves
A5: R2XXXL (1600W AC PSU) | B5: =INDEX(O5:T5,Summary!$B$19) -> 110 | C5: 2.1 | D5: 1600 | E5: =11*1.82 -> 20.02 | F5: Y | G5: 0.9 | H5: 0.91 | I5: 0.91 | J5: 0.91 | K5: 0.91 | L5: na | M5: na | N5: R2XXXL | O5: 133 | P5: 110 | Q5: 104 | R5: 94 | U5: 1600 | V5: 1320 | W5: 1250 | X5: 1130 | AA5: PS Eff% from measured curves
A6: R2XXXL (1600W DC PSU) | B6: =INDEX(O6:T6,Summary!$B$19) -> 0 | C6: 2.1 | D6: 1600 | E6: 20.02 | F6: Y | G6: 0.9 | H6: na | I6: na | J6: na | K6: na | L6: 0.88 | M6: 0.88 | N6: R2XXXL | S6: 34.4 | T6: 27.5 | Y6: 1600 | Z6: 1600 | AA6: PS Eff% from measured curves
A7: User Definable | B7: =INDEX(O7:T7,Summary!$B$19) -> 0 | D7: =INDEX(U7:Z7,Summary!$B$19) -> 0 | F7: N | G7: 0.8 | H7: 0.8 | I7: 0.8 | J7: 0.8 | K7: 0.8 | L7: 0.8 | M7: 0.8 | AA7: <-- Define Custom Numbers Here
A8: User Definable | B8: =INDEX(O8:T8,Summary!$B$19) -> 0 | D8: =INDEX(U8:Z8,Summary!$B$19) -> 0 | F8: N | G8: 0.8 | H8: 0.8 | I8: 0.8 | J8: 0.8 | K8: 0.8 | L8: 0.8 | M8: 0.8 | AA8: <-- Define Custom Numbers Here
A9: User Definable | B9: =INDEX(O9:T9,Summary!$B$19) -> 0 | D9: =INDEX(U9:Z9,Summary!$B$19) -> 0 | F9: N | G9: 0.8 | H9: 0.8 | I9: 0.8 | J9: 0.8 | K9: 0.8 | L9: 0.8 | M9: 0.8 | AA9: <-- Define Custom Numbers Here
A10: User Definable | B10: =INDEX(O10:T10,Summary!$B$19) -> 0 | D10: =INDEX(U10:Z10,Summary!$B$19) -> 0 | F10: N | G10: 0.8 | H10: 0.8 | I10: 0.8 | J10: 0.8 | K10: 0.8 | L10: 0.8 | M10: 0.8 | AA10: <-- Define Custom Numbers Here
A11: User Definable | B11: =INDEX(O11:T11,Summary!$B$19) -> 0 | D11: =INDEX(U11:Z11,Summary!$B$19) -> 0 | F11: N | G11: 0.8 | H11: 0.8 | I11: 0.8 | J11: 0.8 | K11: 0.8 | L11: 0.8 | M11: 0.8 | AA11: <-- Define Custom Numbers Here
A12: User Definable | B12: =INDEX(O12:T12,Summary!$B$19) -> 0 | D12: =INDEX(U12:Z12,Summary!$B$19) -> 0 | F12: N | G12: 0.8 | H12: 0.8 | I12: 0.8 | J12: 0.8 | K12: 0.8 | L12: 0.8 | M12: 0.8 | AA12: <-- Define Custom Numbers Here
A13: User Definable | B13: =INDEX(O13:T13,Summary!$B$19) -> 0 | D13: =INDEX(U13:Z13,Summary!$B$19) -> 0 | F13: N | G13: 0.8 | H13: 0.8 | I13: 0.8 | J13: 0.8 | K13: 0.8 | L13: 0.8 | M13: 0.8 | AA13: <-- Define Custom Numbers Here
A17: Note: HS Fan (Y/N) determines if an Active Heatsink (Heatsink with Fan) in Intel® Boxed Processors is used (adds fan power to budget)
A18: Note: PS Eff is estimate @ typ voltage & 35% to 90% loading based on PS measurement data.

Sheet Processors
A1: Processor Types | B1: TDP (W) | C1: HS Fan (A) | D1: Source | F1: VRM#1 | G1: VRM#2
A2: (Select Processor) | F2: 5V VRM | G2: 12V VRM
A3: E5-4640, 2.4 GHz, 95W, 8 Cores, 20 MB Cache | B3: 95 | D3: EDS rev1.8 - Intel Doc #442505 | G3: None
A4: E5-4650L, 2.6 GHz, 115W, 8 Cores, 20 MB Cache | B4: 115 | D4: EDS rev1.8 - Intel Doc #442505 | G4: None
A5: E5-4650, 2.7 GHz, 130W, 8 Cores, 20 MB Cache | B5: 130 | D5: EDS rev1.8 - Intel Doc #442505
A6: E5-4603, 2 GHz, 95W, 4 Cores, 10 MB Cache | B6: 95 | D6: EDS rev1.8 - Intel Doc #442505
A7: E5-4617, 2.9 GHz, 130W, 6 Cores, 15 MB Cache | B7: 130 | D7: EDS rev1.8 - Intel Doc #442505
A8: E5-4620, 2.2 GHz, 95W, 8 Cores, 16 MB Cache | B8: 95 | D8: EDS rev1.8 - Intel Doc #442505
A9: E5-4607, 2.2 GHz, 95W, 6 Cores, 12 MB Cache | B9: 95 | D9: EDS rev1.8 - Intel Doc #442505
A10: E5-4610, 2.4 GHz, 95W, 6 Cores, 15 MB Cache | B10: 95 | D10: EDS rev1.8 - Intel Doc #442505
E11: <-- Define Custom Numbers Here
E12: <-- Define Custom Numbers Here
E13: <-- Define Custom Numbers Here
E14: <-- Define Custom Numbers Here
E15: <-- Define Custom Numbers Here
E16: <-- Define Custom Numbers Here
E17: <-- Define Custom Numbers Here
E18: <-- Define Custom Numbers Here
E19: <-- Define Custom Numbers Here
E20: <-- Define Custom Numbers Here
E21: <-- Define Custom Numbers Here
A24: Processor Quantities (used for tool operation)
A25: 0 | B25: 0
A26: 1 | B26: 1
A27: 2 | B27: 2
A28: 3 | B28: 3
A29: 4 | B29: 4
A30: Note: HS Fan = Fan 12v current for Active Heatsink which ships with Intel® Boxed Processors

Sheet Memory
B1: DIMM Power Per Channel Configuration
B3: 1DPC | C3: 2DPC | D3: 3DPC
A5: (Select Memory)
A6: 8GB DDR3 RDIMM (4Gb, DRx8) | B6: 5.2 | C6: 5.2 | D6: 3.9
A7: 16GB DDR3 RDIMM (4Gb, DRx4) | B7: 8.3 | C7: 7.4 | D7: 5
A8: 32GB DDR3 LR-DIMM (4Gb, QRx4) | B8: 14.9 | C8: 11.8 | D8: 8.2
A9: 32GB DDR3 DIMM (4Gb, QRx4) | B9: 11.2 | C9: 9.6 | D9: na | E9: *3DPC only supported by LR-DIMMs
A10: 16GB DDR3 DIMM (4Gb, QRx8) | B10: 5.7 | C10: 5.7 | D10: na | E10: *3DPC only supported by LR-DIMMs
A11: User Definable | E11: <-- Define Custom Numbers Here
A12: User Definable | E12: <-- Define Custom Numbers Here
A13: User Definable | E13: <-- Define Custom Numbers Here
A14: User Definable | E14: <-- Define Custom Numbers Here
A15: User Definable | E15: <-- Define Custom Numbers Here
A16: User Definable | E16: <-- Define Custom Numbers Here
A20: Note:
A21: DIMM power will vary depending on the # of DIMMs & the actual strees/bandwidth used.
A22: DIMMs are assumed to be evenly distributed across available channels on a 4 channel motherboard.
A23: Numbers assume fan control set to performance mode
A25: Channels Per CPU
A26: 0
A27: 1
A28: 2
A29: 3
A30: 4
A32: DPC (Dimms per Channel)
A33: 0
A34: 1
A35: 2
A36: 3

Sheet PCI
A1: PCI Add in Cards | B1: Amps of +3.3V | C1: Amps of +5V | D1: Amps of +12V | E1: Amps of 3.3V Stby | F1: Amps of 5V Stby | G1: Watts
A2: Slot Empty
A3: PCI-X (5V) Typical | C3: 2 | G3: =B3*3.3+C3*5+D3*12+E3*3.3+F3*5 -> 10
A4: PCIe (3V) Typical | B4: 3 | G4: 9.9
A5: PCIe (3.3V / 12V) Typical | B5: 2 | D5: 0.25 | G5: 9.6
A6: PCIe (3.3V / 12V) High | B6: 2 | D6: 0.7 | G6: 15
A7: RMS25PB080 (PCIe ROC) | B7: 0.86 | D7: 0.55 | E7: 0.2 | G7: =B7*3.3+C7*5+D7*12+E7*3.3 -> 10.098
A8: RMS25PB040 (PCIe ROC) | B8: 0.86 | D8: 0.55 | E8: 0.2 | G8: 10.098
A9: Xeon Phi 75W (No Supplimental Pwr Cables) | D9: =75/12 -> 6.25 | G9: =B9*3.3+C9*5+D9*12+E9*3.3 -> 75
A10: Xeon Phi 150W (One 2x3 Pwr Cable) | D10: =(75+75)/12 -> 12.5 | G10: =B10*3.3+C10*5+D10*12+E10*3.3+F10*5 -> 150
A11: Xeon Phi 225W (Two 2x3 Pwr Cable) | D11: =(75+2*75)/12 -> 18.75 | G11: 225
A12: Xeon Phi 225W (One 2x4 Pwr Cable) | D12: =(75+150)/12 -> 18.75 | G12: 225
A13: Xeon Phi 300W (One 2x4 & One 2x3 Pwr Cable) | D13: =(75+75+150)/12 -> 25 | G13: 300
A14: User Definable | G14: =B14*3.3+C14*5+D14*12+E14*3.3+F14*5 -> 0 | H14: <-- Define Custom Card Here
A15: User Definable | G15: 0 | H15: <-- Define Custom Card Here
A16: User Definable | G16: 0 | H16: <-- Define Custom Card Here
A17: User Definable | G17: 0 | H17: <-- Define Custom Card Here
A18: User Definable | G18: 0 | H18: <-- Define Custom Card Here
A19: User Definable | G19: 0 | H19: <-- Define Custom Card Here
A21: SAS ROC/IOC
A22: Slot Empty
A23: User Definable | G23: =B23*3.3+C23*5+D23*12+E23*3.3+F23*5 -> 0 | H23: <-- Define Custom Card Here
A24: User Definable | G24: =B24*3.3+C24*5+D24*12+E24*3.3+F24*5 -> 0 | H24: <-- Define Custom Card Here
A25: User Definable | G25: 0 | H25: <-- Define Custom Card Here
A26: User Definable | G26: 0 | H26: <-- Define Custom Card Here
A28: IO Module
A29: Slot Empty
A30: AXX10GBNIAIOM | B30: 1.457 | D30: 0.57 | E30: 0.002 | G30: =B30*3.3+C30*5+D30*12+E30*3.3+F30*5 -> 11.6547
A31: AXX10GBTWLIOM | D31: 1.21 | E31: 0.019 | F31: 0.03 | G31: 14.7327
A32: AXX4P1GBPWLIOM | D32: 0.27 | E32: 0.35 | G32: 4.395
A33: AXX1FDRIBIOM | B33: 0.77 | D33: 0.46 | E33: 0.002 | G33: 8.0676
A34: AXX2FDRIBIOM | B34: 1.23 | D34: 0.46 | E34: 0.002 | G34: =B34*3.3+C34*5+D34*12+E34*3.3+F34*5 -> 9.5856
A35: AXXQAAIOMOD | B35: 0.43 | D35: 1.25 | E35: 0.002 | G35: 16.4256
A36: User Definable | G36: 0 | H36: <-- Define Custom Card Here
A37: User Definable | G37: 0 | H37: <-- Define Custom Card Here
A39: RMM4
A40: Slot Empty
A41: AXXRMM4 | E41: =0.498+0.066 -> 0.564 | G41: =B41*3.3+C41*5+D41*12+E41*3.3+F41*5 -> 1.8612
A42: User Definable | G42: 0 | H42: <-- Define Custom Card Here
A43: User Definable | G43: 0 | H43: <-- Define Custom Card Here
A44: User Definable | G44: 0 | H44: <-- Define Custom Card Here
A46: eUSB/SATADOM
A47: Slot Empty
A48: Generic eUSB | E48: 0.08 | G48: =B48*3.3+C48*5+D48*12+E48*3.3+F48*5 -> 0.264
A49: Generic SATADOM | C49: 0.17 | G49: 0.85
A50: User Definable | G50: =B50*3.3+C50*5+D50*12+E50*3.3+F50*5 -> 0 | H50: <-- Define Custom Card Here
A51: User Definable | G51: 0 | H51: <-- Define Custom Card Here

Sheet HardDrive
A1: Hard Drives | B1: Amps of +3.3V | C1: Amps of +5V | D1: Amps of +12V | E1: Watts
A2: Empty
A3: 3.5" SATA Typical Power (12W) | C3: 0.5 | D3: 0.8 | E3: =B3*3.3+C3*5+D3*12 -> 12.1
A4: 3.5" SAS Typical Power (15W) | C4: 0.8 | D4: 0.92 | E4: =B4*3.3+C4*5+D4*12 -> 15.04
A5: 2.5" SATA Typical Power (5W) | C5: 1 | D5: 0 | E5: 5
A6: 2.5" SAS Typical Power (9W) | C6: 0.81 | D6: 0.41 | E6: 8.97
A7: 3.5" Seagate ST33000650SS Constellation ES.2 | C7: 0.74 | D7: 0.49 | E7: 9.58 | G7: <-- Define Custom Device Here
A8: 3.5" SAS Seagate ST3600057SS Cheetah 15K.7 | C8: 0.45 | D8: 1.17 | E8: 16.29 | G8: <-- Define Custom Device Here
A9: 2.5" SAS Seagate ST91000640SS Constellation.2 | C9: 1 | D9: 0.17 | E9: 7.04 | G9: <-- Define Custom Device Here
A10: 2.5" SAS Seagate ST9146852SS Savvio 15K.2 | C10: 0.43 | D10: 0.4 | E10: 6.95 | G10: <-- Define Custom Device Here
A11: 2.5" SAS Intel X25-M 64GB SSDSA2SE064G1 | C11: 0.52 | E11: 2.6 | G11: <-- Define Custom Device Here
A12: Micron P300 200MB MTFDDAC200SAL-1N1 | C12: 0.7 | E12: 3.5 | G12: <-- Define Custom Device Here
A13: User Definable | E13: 0 | G13: <-- Define Custom Device Here
A14: User Definable | E14: 0 | G14: <-- Define Custom Device Here
A15: User Definable | E15: 0 | G15: <-- Define Custom Device Here
A16: User Definable | E16: 0 | G16: <-- Define Custom Device Here
A18: HSBP | B18: Amps of +3.3V | C18: Amps of +5V | D18: Amps of +12V | E18: Watts | F18: # of HDD
A19: Empty
A20: 1U 4x3.5" HSBP | D20: 0.087 | E20: =B20*3.3+C20*5+D20*12 -> 1.044 | F20: 4
A21: 1U 8x2.5" HSBP | D21: =0.117+0.061 -> 0.178 | E21: 2.136 | F21: 8
A22: User Definable | E22: 0
A23: User Definable | E23: 0
A24: User Definable | E24: 0
A25: User Definable | E25: 0
A26: User Definable | E26: 0 | G26: <-- Define Custom Device Here
A27: User Definable | E27: 0 | G27: <-- Define Custom Device Here
A28: User Definable | E28: 0 | G28: <-- Define Custom Device Here
A29: User Definable | E29: 0 | G29: <-- Define Custom Device Here
A30: User Definable | E30: 0 | G30: <-- Define Custom Device Here
A31: User Definable | E31: 0 | G31: <-- Define Custom Device Here

Sheet Peripherals
A1: Misc Peripherals | B1: Amps of +3.3V | C1: Amps of +5V | D1: Amps of +12V | E1: Amps of 3VSB | F1: Watts
A2: Slim-Line Devices
A3: Empty
A4: AXXSATADVDROM | C4: 0.7 | F4: =B4*3.3+C4*5+D4*12++E4*3.3 -> 3.5
A5: AXXSATADVDRWROM | C5: 0.8 | F5: =B5*3.3+C5*5+D5*12++E5*3.3 -> 4
A6: User Definable | F6: 0 | G6: <-- Define Custom Peripherals Here
A7: User Definable | F7: 0 | G7: <-- Define Custom Peripherals Here
A8: User Definable | F8: 0 | G8: <-- Define Custom Peripherals Here
A9: User Definable | F9: 0 | G9: <-- Define Custom Peripherals Here
A11: SSD Drives
A12: Empty
A13: Intel 320 600GB SSDSA2CW600G3xx | C13: 0.15 | F13: =B13*3.3+C13*5+D13*12++E13*3.3 -> 0.75
A14: Intel X25-M 64GB SSDSA2SE064G1 | C14: =2.6/5 -> 0.52 | F14: 2.6
A15: Micron P300 200MB MTFDDAC200SAL-1N1 | C15: =3.5/5 -> 0.7 | F15: 3.5 | G15: <-- Define Custom Peripherals Here
A16: User Definable | F16: 0 | G16: <-- Define Custom Peripherals Here
A17: User Definable | F17: 0 | G17: <-- Define Custom Peripherals Here
A18: User Definable | F18: 0 | G18: <-- Define Custom Peripherals Here
A20: Midplane SAS Expanders
A21: Empty
A22: User Definable | F22: =B22*3.3+C22*5+D22*12++E22*3.3 -> 0
A23: User Definable | F23: 0
A24: User Definable | F24: 0 | G24: <-- Define Custom Peripherals Here
A25: User Definable | F25: 0 | G25: <-- Define Custom Peripherals Here
A26: User Definable | F26: 0 | G26: <-- Define Custom Peripherals Here
A27: User Definable | F27: 0 | G27: <-- Define Custom Peripherals Here

Sheet Revision
A1: =MAX(A4:A27) -> 2012-10-13 | B1: =MAX(B4:B27) -> 1 | D1: <=== Linked to Summary Tab.
A3: Date | B3: Rev | C3: Notes | D3: Init
A4: 2012-09-13 | B4: 0.1 | C4: Initial Draft for review | D4: rk
A5: 2012-10-13 | B5: 1 | C5: Final Release | D5: rk
